[Event "81st Georgian-ch Men 2022"]
[Site "Tbilisi"]
[Date "2022.01.30"]
[Round "6.3"]
[White "Lortkipanidze, Nodar"]
[Black "Tutisani, Noe"]
[Result "1/2-1/2"]
[ECO "A36"]
[WhiteElo "2407"]
[BlackElo "2419"]
[Annotator "RC"]
[PlyCount "112"]
[EventDate "2022.01.24"]
[EventType "tourn"]
[EventCountry "GEO"]
[SourceTitle "playchess.com"]
[Source "ChessBase"]
[SourceQuality "1"]
[TimeControl "5400+30"]

1. c4 {[%emt 0:09:39]} g6 {[%emt 0:00:48]} 2. Nc3 {[%emt 0:01:47]} Bg7 {[%emt 0:00:05]} 3. g3 {[%emt 0:00:09]} c5 {[%emt 0:00:25]} 4. Bg2 {[%emt 0:00:07]} Nc6 {[%emt 0:00:04]} 5. d3 {[%emt 0:00:12]} d6 {[%emt 0:00:15]} 6. e4 {[%emt 0:00:10]} Nf6 {[%emt 0:01:02]} 7. Nge2 {[%emt 0:00:28]} O-O {[%emt 0:00:12]} 8. O-O {[%emt 0:00:04]} Rb8 {[%emt 0:02:33]} 9. Rb1 {[%emt 0:00:07]} a6 {[%emt 0:00:13]} 10. a3 {[%emt 0:00:16]} b5 {[%emt 0:01:41]} 11. cxb5 {[%emt 0:00:09]} axb5 {[%emt 0:00:03]} 12. b4 {[%emt 0:00:05]} cxb4 {[%emt 0:00:39]} 13. axb4 {[%emt 0:00:05]} e5 {[%emt 0:00:11]} 14. h3 {[%emt 0:02:51]} Ne8 {[%emt 0:07:41]} 15. Be3 {[%emt 0:02:18]} Nd4 {[%emt 0:03:11]} 16. Bxd4 {[%emt 0:00:22]} exd4 {[%emt 0:00:06]} 17. Nd5 {[%emt 0:00:03]} Nc7 {[%emt 0:00:27]} 18. Nc1 {[%emt 0:04:18]} Nxd5 {[%emt 0:05:08]} 19. exd5 {[%emt 0:00:05]} Qc7 {[%emt 0:00:02]} 20. Nb3 {[%emt 0:01:10]} f5 {[%emt 0:07:22]} 21. Rc1 {[%emt 0:01:03]} Qf7 {[%emt 0:01:04]} 22. Qf3 {[%emt 0:04:41]} h5 {[%emt 0:09:01]} 23. Rfe1 {[%emt 0:01:07]} g5 {[%emt 0:01:23]} 24. Rc6 {[%emt 0:02:15]} Be5 {[%emt 0:07:21]} 25. Rxe5 {[%emt 0:11:03]} dxe5 {[%emt 0:02:40]} 26. Nc5 {[%emt 0:00:32]} g4 {[%emt 0:22:08]} 27. hxg4 {[%emt 0:03:56]} hxg4 {[%emt 0:00:10]} 28. Qe2 {[%emt 0:00:08]} Ra8 {[%emt 0:00:05]} 29. Qxe5 {[%emt 0:01:21]} Ra1+ {[%emt 0:01:10]} 30. Bf1 {[%emt 0:00:06]} Qg7 {[%emt 0:07:00]} 31. Qf4 {[%emt 0:07:59]} Re8 {[%emt 0:00:56]} 32. Rc7 {[%emt 0:00:50]} Qg6 {[%emt 0:01:41]} 33. Qxd4 {[%emt 0:20:19]} Rxf1+ {[%emt 0:00:29]} 34. Kxf1 {[%emt 0:00:04]} Qh6 {[%emt 0:00:03]} 35. Qe3 {[%emt 0:06:08]} Qh1+ {[%emt 0:00:16]} 36. Ke2 {[%emt 0:00:04]} Rxe3+ {[%emt 0:00:10]} 37. fxe3 {[%emt 0:00:35]} Qg2+ {[%emt 0:00:22]} 38. Kd1 {[%emt 0:00:04]} Qxg3 {[%emt 0:00:07]} 39. Rxc8+ {[%emt 0:00:06]} Kf7 {[%emt 0:00:05]} 40. e4 {[%emt 0:00:26]} fxe4 {[%emt 0:00:35]} 41. dxe4 {[%emt 0:00:04]} Qf3+ {[%emt 0:00:13]} 42. Kc2 {[%emt 0:00:52]} Qe2+ {[%emt 0:00:10]} 43. Kc3 {[%emt 0:00:12]} Qc4+ {[%emt 0:01:05]} 44. Kd2 {[%emt 0:00:26]} g3 {[%emt 0:02:05]} 45. Rc7+ {[%emt 0:00:42]} Kg6 {[%emt 0:00:06]} 46. Rc6+ {[%emt 0:00:32]} Kh5 {[%emt 0:00:19]} 47. Nd3 {[%emt 0:00:56]} Qxe4 {[%emt 0:03:43]} 48. Re6 {[%emt 0:00:11]} Qd4 {[%emt 0:00:13]} 49. Re2 {[%emt 0:00:58]} Kg4 {[%emt 0:00:36]} 50. d6 {[%emt 0:00:45]} Qxd6 {[%emt 0:00:25]} 51. Re4+ {[%emt 0:00:09]} Kh3 {[%emt 0:01:11]} 52. Ke2 {[%emt 0:00:18]} Qf6 {[%emt 0:00:46]} 53. Rf4 {[%emt 0:00:25]} Qe6+ {[%emt 0:00:20]} 54. Kf1 {[%emt 0:01:14]} Qe3 {[%emt 0:00:08]} 55. Nf2+ {[%emt 0:00:09]} gxf2 {[%emt 0:00:52]} 56. Rf3+ {[%emt 0:00:04]} Qxf3 {[%emt 0:00:01]} 1/2-1/2